bitfinex-derivatives/quotes_ETHF0:USTF0_20240928
["timestamp","ask_amount","ask_price","bid_price","bid_amount"]
[1727510472294,2.77456098,2679.2,2679.1,0.37316]
[1727510473688,0.8195,2679.2,2679.1,0.37316]
[1727510474495,0.4193,2679.2,2679.1,0.37316]
[1727510475499,0.4193,2679.2,2679.1,1.35179568]
[1727510475695,0.0342,2679.2,2679.1,1.35179568]
[1727510475891,1.50053995,2679.2,2679.1,1.35179568]
[1727510476697,0.0342,2679.2,2679.1,1.35179568]
[1727510477392,1.50058214,2679.2,2679.1,1.35179568]
[1727510477599,1.5006112,2679.2,2679.1,1.35179568]
[1727510477796,0.0342,2679.2,2679.1,1.35179568]
[1727510478790,1.50062396,2679.2,2679.1,1.35179568]
[1727510478991,0.0342,2679.2,2679.1,1.35179568]
[1727510479397,1.5006484,2679.2,2679.1,1.35179568]
[1727510479597,1.5006484,2679.2,2679.1,1.5472228]
[1727510479799,1.5006484,2679.2,2679.1,3.01518737]
[1727510480702,1.5006484,2679.2,2679.1,7.34794625]
[1727510480703,0.0342,2679.2,2679.1,7.34794625]
[1727510480907,1.5006484,2679.2,2679.1,7.34794625]
[1727510481513,0.0342,2679.2,2679.1,7.34794625]
[1727510481734,0.0342,2679.2,2679.1,12.01365625]
[1727510481906,0.0342,2679.2,2679.1,19.35205384]
[1727510482103,0.0342,2679.2,2679.1,13.35205384]
[1727510482306,0.0342,2679.2,2679.1,19.35205384]
[1727510482604,0.0342,2679.2,2679.1,13.35205384]
[1727510482803,0.0342,2679.2,2679.1,19.35205384]
[1727510483107,0.0342,2679.2,2679.1,13.35205384]
[1727510483907,0.0342,2679.2,2679.1,13.35109222]
[1727510484211,0.0342,2679.2,2679.1,13.35095292]
[1727510484412,0.0342,2679.2,2679.1,12.89272717]
[1727510484599,0.0342,2679.2,2679.1,13.35091049]
[1727510485511,0.0342,2679.2,2679.1,15.30735209]
[1727510486306,0.0342,2679.2,2679.1,15.30744004]
[1727510486507,0.0342,2679.2,2679.1,21.30744004]
[1727510486813,0.0342,2679.2,2679.1,19.35052367]
[1727510487014,0.9777318,2679.5,2679.4,0.37312]
[1727510487214,0.9777318,2679.5,2679.4,4.73706598]
[1727510487415,0.9777318,2679.5,2679.4,7.83231527]
[1727510487612,0.9777318,2679.5,2679.4,9.00921527]
[1727510488205,0.9777318,2679.5,2679.4,12.74121527]
[1727510488803,0.9777318,2679.6,2679.5,0.37311]
[1727510489010,0.9777318,2679.6,2679.5,1.54631797]
[1727510489209,0.9777318,2679.7,2679.6,0.37309]
[1727510489416,0.9777318,2679.7,2679.6,2.69122498]
[1727510489716,0.9777318,2679.7,2679.6,6.73566282]
[1727510490412,0.9777318,2679.7,2679.6,5.75752784]
[1727510492012,0.37311,2679.5,2679.4,2.31813498]
[1727510492313,0.37311,2679.5,2679.2,0.97813498]
[1727510492314,0.37313,2679.3,2679.2,0.97813498]
[1727510492510,0.37315,2679.2,2679.1,1.34]
[1727510492713,0.76675,2679.2,2679.1,1.34]
[1727510493014,2.23118305,2679.2,2679.1,1.34]
[1727510493719,0.76675,2679.2,2679.1,1.34]
[1727510495221,0.37319,2679.0,2678.9,1.34]
[1727510495407,1.83742607,2679.0,2678.9,1.34]
[1727510497615,0.93298,2678.9,2678.4,0.3874]
[1727510497922,0.97565833,2678.5,2678.4,1.34]
[1727510498216,0.97548394,2678.5,2678.4,1.34]
[1727510498421,2.10372352,2678.5,2678.4,1.34]
[1727510498619,1.12824,2678.5,2678.4,1.34]
[1727510498924,2.5917275,2678.5,2678.4,1.34]
[1727510499120,5.9520875,2678.5,2678.0,4.94664498]
[1727510499321,5.9520875,2678.5,2677.7,1.95675098]
[1727510499322,1.34835672,2678.2,2678.1,0.872]
[1727510499524,0.37329,2678.2,2678.1,0.872]
[1727510499722,1.34835672,2678.2,2678.1,0.872]
[1727510500612,4.18286672,2678.3,2678.1,0.873]
[1727510500830,0.37332,2678.0,2677.7,2.91]
[1727510501127,1.1404,2677.9,2677.7,3.28335]
[1727510501623,1.1404,2677.9,2677.8,0.872]
[1727510502015,1.1404,2677.9,2677.7,2.91]
[1727510502216,1.1404,2677.9,2677.7,3.782]
[1727510503416,1.51373,2677.9,2677.7,3.782]
[1727510504618,1.51373,2677.9,2677.7,2.91]
[1727510504920,1.51373,2677.9,2677.7,3.782]
[1727510506824,1.51373,2677.9,2677.7,2.91]
[1727510507327,1.1404,2677.9,2677.7,2.91]
[1727510507532,1.1404,2677.9,2677.8,2.91]
[1727510507927,0.3854,2677.9,2677.8,3.28334]
[1727510508524,0.7995,2678.2,2677.9,0.37332]
[1727510508834,0.7686,2678.2,2678.1,3.2833]
[1727510509027,0.3715,2678.2,2678.1,3.2833]
[1727510511227,0.3715,2678.2,2678.1,4.1553]
[1727510512731,3.2078,2678.3,2678.2,0.37329]
[1727510514632,3.58107,2678.3,2678.1,4.15529]
[1727510515231,0.37327,2678.3,2678.1,4.15529]
[1727510515632,0.37331,2678.1,2677.9,3.6926]
[1727510515828,0.37331,2678.1,2677.9,3.28333]
[1727510516028,0.37331,2678.1,2678.0,0.872]
[1727510516228,3.7344,2678.1,2677.7,6.1178]
[1727510516541,0.37334,2677.8,2677.7,3.782]
[1727510517731,0.37334,2677.8,2677.7,0.872]
[1727510518030,0.37334,2677.8,2677.6,3.782]
[1727510518827,3.6003,2678.0,2677.7,2.91]
[1727510519533,0.37335,2677.8,2677.7,2.91]
[1727510520335,3.6003,2678.0,2677.7,2.91]
[1727510520336,0.37333,2677.9,2677.7,2.91]
[1727510520530,3.97362,2678.0,2677.7,3.28335]
[1727510522039,0.37333,2677.9,2677.7,3.28335]
[1727510522935,0.37333,2677.9,2677.7,2.91]
[1727510525531,3.6003,2678.0,2677.7,2.91]
[1727510525936,3.97362,2678.0,2677.8,0.37334]
[1727510526134,3.97362,2678.0,2677.8,0.76944]
[1727510526337,3.97362,2678.0,2677.8,0.3961]
[1727510527143,3.97362,2678.0,2677.9,2.91]
[1727510527644,0.76582,2678.0,2677.9,2.91]
[1727510528235,4.50022,2678.0,2677.9,2.91]
[1727510528436,0.76582,2678.0,2677.9,2.91]
[1727510528632,4.50022,2678.0,2677.9,2.91]
[1727510528842,0.76582,2678.0,2677.9,2.91]
[1727510529040,0.3925,2678.0,2677.9,2.91]
[1727510529539,0.76581,2678.0,2677.9,2.91]
[1727510530139,0.76581,2678.0,2677.8,0.3961]
[1727510530340,0.37333,2677.9,2677.8,0.3961]
[1727510530638,0.37333,2677.9,2677.8,1.7361]
[1727510532240,0.37333,2677.9,2677.8,0.3961]
[1727510534841,0.75483,2677.9,2677.8,0.3961]
[1727510535135,4.1159,2677.9,2677.5,0.872]
[1727510535336,0.37337,2677.6,2677.4,3.67149]
[1727510535540,0.3811,2677.5,2677.4,3.2981]
[1727510535949,0.3811,2677.5,2677.4,3.6715]
[1727510538053,0.75448,2677.5,2677.4,2.91]
[1727510538355,1.15688,2677.5,2677.4,2.91]
[1727510539152,11.49376672,2677.5,2677.2,2.91]
[1727510539352,0.3734,2677.4,2677.2,2.91]
[1727510539549,0.3712,2677.3,2677.2,2.91]
[1727510539754,0.3712,2677.3,2677.2,3.28343]
[1727510539953,4.1064,2677.3,2677.2,3.28343]
[1727510540953,4.55626672,2677.4,2677.2,3.28343]
[1727510541153,4.18286672,2677.4,2677.2,3.28343]
[1727510541351,4.55626672,2677.4,2677.2,2.91]
[1727510542046,4.55626672,2677.4,2677.2,3.68732]
[1727510542252,4.55626672,2677.4,2677.3,0.4051]
[1727510542455,5.0446875,2677.4,2677.3,0.4051]
[1727510542656,8.7798875,2677.4,2677.3,0.4051]
[1727510542953,0.37341,2677.3,2677.1,3.3151]
[1727510543151,1.34684073,2677.3,2677.1,3.3151]
[1727510543343,0.97343073,2677.3,2677.1,3.68854]
[1727510543547,5.0446975,2677.4,2677.1,3.68854]
[1727510543548,0.97343073,2677.2,2677.1,3.68854]
[1727510543768,1.4634875,2677.2,2677.0,3.2078]
[1727510543948,1.35737046,2677.1,2677.0,3.6129]
[1727510544254,1.35712382,2677.1,2677.0,3.6129]
[1727510544556,5.5823875,2677.1,2677.0,3.6129]
[1727510544753,5.5823875,2677.1,2677.0,3.98635]
[1727510544948,1.8369175,2677.2,2677.0,3.6129]
[1727510545149,1.4634875,2677.2,2677.1,2.91]
[1727510545344,1.8369175,2677.2,2677.1,2.91]
[1727510545961,1.4634875,2677.2,2677.1,2.91]
[1727510546157,1.8369175,2677.2,2677.1,2.91]
[1727510546457,1.34673315,2677.2,2677.1,2.91]
[1727510546958,0.97330315,2677.2,2677.1,3.28344]
[1727510547151,0.0342,2677.5,2677.1,10.78308558]
[1727510547352,0.0342,2677.5,2677.4,0.3734]
[1727510547853,0.0342,2677.5,2677.4,1.5348]
[1727510548152,0.0342,2677.5,2677.4,9.56940771]
[1727510551064,1.32030315,2677.9,2677.4,9.19600771]
[1727510551254,0.97330315,2677.9,2677.7,3.28335]
[1727510551750,1.34663315,2677.9,2677.7,2.91]
[1727510551952,0.97330315,2677.8,2677.7,2.91]
[1727510552164,0.97330315,2677.9,2677.7,3.28336]
[1727510554157,0.97330315,2677.9,2677.8,0.4081]
[1727510554364,1.34663315,2677.9,2677.8,0.4081]
[1727510554866,0.97330315,2677.9,2677.8,0.4081]
[1727510555162,1.34663315,2677.9,2677.8,0.4081]
[1727510555364,0.97367239,2677.9,2677.8,0.4081]
[1727510555866,0.37333,2677.9,2677.8,0.4081]
[1727510556468,1.8368175,2677.9,2677.8,0.4081]
[1727510556868,0.37333,2677.9,2677.8,0.4081]
[1727510557062,1.8368175,2677.9,2677.8,0.4081]
[1727510557762,2.2267175,2677.9,2677.8,0.4081]
[1727510557964,5.5877875,2677.9,2677.7,2.91]
[1727510558162,6.3417375,2677.8,2677.6,0.37337]
[1727510558358,0.97394359,2677.7,2677.6,0.37337]
[1727510559672,0.37341,2677.3,2677.0,0.97813498]
[1727510559974,0.37343,2677.2,2677.1,3.6777]
[1727510560160,1.83463505,2677.2,2677.1,3.6777]
[1727510561063,5.56983505,2677.2,2677.1,2.91]
[1727510561271,0.37345,2677.0,2676.9,6.1178]
[1727510561465,1.34726385,2677.0,2676.9,6.1178]
[1727510562069,1.83465505,2677.0,2676.9,2.91]
[1727510562268,1.34720395,2677.0,2676.9,2.91]
[1727510562472,1.83465505,2677.0,2676.9,2.91]
[1727510562871,1.83465505,2677.0,2676.7,0.7677]
[1727510562872,0.37348,2676.9,2676.7,0.7677]
[1727510563163,0.37348,2676.9,2676.8,2.91]
[1727510563164,1.34722564,2676.9,2676.8,2.91]
[1727510563573,0.97374564,2676.9,2676.8,2.91]
[1727510564480,1.34720564,2677.0,2676.8,2.91]
[1727510564774,0.97374564,2677.0,2676.8,2.91]
[1727510564970,0.97374564,2677.0,2676.8,3.28348]
[1727510566080,0.97374564,2677.0,2676.9,0.37347]
[1727510566282,0.97374564,2677.0,2676.8,2.91]
[1727510566283,0.97374564,2677.2,2677.0,0.37345]
[1727510566470,0.97374564,2677.2,2677.1,2.91]
[1727510566673,0.97374564,2677.3,2677.1,3.2982]
[1727510566867,0.97374564,2677.3,2677.2,0.3719]
[1727510567269,0.97374564,2677.3,2677.2,0.74533]
[1727510567470,4.18154564,2677.4,2677.2,0.74533]
[1727510567774,4.18154564,2677.4,2677.3,3.28341]
[1727510571976,3.2078,2677.4,2677.3,3.28341]
[1727510573378,3.2078,2677.4,2677.3,2.91]
[1727510574183,3.2078,2677.4,2677.3,3.28341]
[1727510574574,0.97374564,2677.6,2677.3,2.91]
[1727510574775,0.97374564,2677.6,2677.5,3.28338]
[1727510580476,2.70181667,2677.9,2677.5,9.8522]
[1727510580477,0.97374564,2677.8,2677.5,9.8522]
[1727510580681,1.46120505,2677.9,2677.7,2.91]
[1727510580682,0.97374564,2677.9,2677.7,2.91]
[1727510581296,2.22424505,2677.8,2677.6,0.76457]
[1727510581584,1.46120505,2677.7,2677.6,0.76457]
[1727510582183,0.7623,2677.8,2677.7,0.37336]
[1727510583186,2.22438671,2677.8,2677.7,0.37336]
[1727510585086,0.7623,2677.8,2677.7,0.37336]
[1727510586286,0.7623,2677.8,2677.7,1.71336]
[1727510588687,0.37336,2677.7,2677.5,1.71337]
[1727510588892,3.58117,2677.6,2677.5,1.34]
[1727510589286,4.66977625,2677.6,2677.5,1.71338]
[1727510589589,4.6697249,2677.6,2677.5,1.71338]
[1727510589781,3.2078,2677.6,2677.5,1.71338]
[1727510593689,2.33893976,2677.8,2677.7,0.37336]
[1727510594883,2.33893976,2677.8,2677.7,0.74196]
[1727510596299,0.3897,2677.8,2677.7,0.74196]
[1727510596683,1.85227451,2677.8,2677.7,0.74196]
[1727510597288,0.97516081,2677.8,2677.7,0.74196]
[1727510598386,1.46257451,2677.9,2677.8,0.37334]
[1727510598587,2.32256976,2678.0,2677.8,1.71334]
[1727510599095,3.2078,2677.9,2677.8,1.71334]
[1727510599485,3.6046,2677.9,2677.8,1.71334]
[1727510599881,0.37334,2677.8,2677.7,1.34]
[1727510600084,2.69227976,2677.8,2677.7,1.34]
[1727510600792,2.69227976,2677.8,2677.7,1.71336]
[1727510601796,2.69227976,2677.8,2677.7,1.34]
[1727510602294,0.74304,2677.8,2677.7,1.34]
[1727510602590,0.37338,2677.6,2677.5,1.34]
[1727510603595,0.37338,2677.6,2677.5,1.71338]
[1727510605494,2.32478688,2677.6,2677.5,1.71338]
[1727510605694,0.37338,2677.6,2677.5,1.71338]
[1727510605897,2.32478688,2677.6,2677.5,1.71338]
[1727510606499,0.3734,2677.4,2677.2,0.3882]
[1727510606793,0.3734,2677.4,2677.3,1.34]
[1727510606990,2.32509442,2677.4,2677.3,1.34]
[1727510607189,3.11489442,2677.4,2677.3,1.34]
[1727510607599,1.1632,2677.4,2677.3,1.71341]
[1727510609297,0.7898,2677.4,2677.3,1.71341]
[1727510609696,1.1632,2677.4,2677.3,1.71341]
[1727510610298,3.60702623,2677.4,2677.3,1.71341]
[1727510610597,7.34222623,2677.4,2677.3,1.71341]
[1727510610796,7.34222623,2677.4,2677.3,1.34]
[1727510614097,4.8984,2677.4,2677.3,1.34]
[1727510614301,7.33935409,2677.4,2677.3,1.34]
[1727510614504,4.8984,2677.4,2677.2,1.34]
[1727510614707,2.81407931,2677.3,2677.2,1.34]
[1727510616818,6.02185931,2677.5,2677.3,0.37341]
[1727510617107,6.02185931,2677.5,2677.4,0.7739]
[1727510617907,3.58119,2677.5,2677.4,0.7739]
[1727510618414,6.02185931,2677.5,2677.4,0.7739]
[1727510620424,6.02185931,2677.5,2677.4,1.1473]
[1727510620425,3.58119,2677.5,2677.4,1.1473]
[1727510620831,3.58119,2677.5,2677.4,0.7739]
[1727510621435,3.2078,2677.5,2677.4,1.1473]
[1727510621629,3.58118,2677.5,2677.4,1.1473]
[1727510622723,3.58118,2677.5,2677.4,0.7739]
[1727510622920,3.58118,2677.5,2677.4,1.1473]
[1727510623121,3.2078,2677.5,2677.4,1.1473]
[1727510623325,5.15959264,2677.5,2677.4,1.1473]
[1727510623531,4.67172862,2677.5,2677.4,1.1473]
[1727510626527,1.46392862,2677.5,2677.4,1.1473]
[1727510628735,1.46392862,2677.5,2677.4,2.4873]
[1727510628939,1.95179264,2677.6,2677.5,0.37338]
[1727510629341,1.95179264,2677.6,2677.5,0.76858]
[1727510629544,5.15959264,2677.7,2677.6,0.37337]
[1727510629743,5.15959264,2677.7,2677.6,1.71337]
[1727510630042,3.58116,2677.7,2677.6,1.71337]
[1727510630243,3.58116,2677.7,2677.6,1.34]
[1727510631134,3.58116,2677.7,2677.6,1.71337]
[1727510631330,3.58116,2677.7,2677.6,1.34]
[1727510633638,0.37337,2677.6,2677.5,0.3952]
[1727510636336,3.58117,2677.6,2677.5,0.3952]
[1727510636538,0.37338,2677.5,2677.4,1.7331]
[1727510636939,0.37338,2677.5,2677.4,1.34]
[1727510637442,0.3734,2677.4,2677.1,0.7729]
[1727510637642,2.3257687,2677.4,2677.3,1.71341]
[1727510637846,1.9523687,2677.4,2677.3,1.71341]
[1727510638145,2.3257687,2677.4,2677.3,1.71341]
[1727510638346,1.9523687,2677.4,2677.3,1.71341]
[1727510638552,1.46426847,2677.4,2677.3,1.71341]
[1727510640652,1.9523687,2677.6,2677.3,6.05333498]
[1727510640653,0.97626888,2677.5,2677.3,6.05333498]
[1727510640846,1.46439424,2677.6,2677.5,0.37338]
[1727510641347,1.46439424,2677.6,2677.5,1.15718]
[1727510643252,5.5335387,2677.6,2677.5,0.7838]
[1727510643546,5.5335387,2677.6,2677.2,0.76021]
[1727510643547,0.3734,2677.4,2677.2,0.76021]
[1727510643741,1.85687942,2677.3,2677.2,0.76021]
[1727510643941,2.23028942,2677.3,2677.2,5.83541]
[1727510644136,2.23028942,2677.3,2677.2,10.01799792]
[1727510644639,1.85687942,2677.3,2677.2,10.01799792]
[1727510644851,2.23028942,2677.3,2677.2,2.10021]
[1727510645346,2.23028942,2677.3,2677.2,0.3868]
[1727510645347,2.71844923,2677.3,2677.2,0.3868]
[1727510645547,2.71844923,2677.3,2677.2,1.7268]
[1727510645750,2.71844923,2677.3,2677.2,1.34]
[1727510647452,2.71894686,2677.3,2677.2,1.34]
[1727510647656,2.71894686,2677.3,2677.1,0.76973]
[1727510647849,2.71894686,2677.3,2677.2,1.34]
[1727510647850,1.95313686,2677.3,2677.2,1.34]
[1727510648051,1.95313686,2677.3,2677.2,1.71343]
[1727510648052,1.46485065,2677.3,2677.2,1.71343]
[1727510648347,0.97662694,2677.4,2677.3,0.37341]
[1727510648549,0.97669665,2677.5,2677.3,3.49276979]
[1727510648749,0.97669665,2677.5,2677.4,1.7228989]
[1727510648953,0.97669665,2677.5,2677.4,0.744]
[1727510648954,1.46485065,2677.5,2677.4,0.744]
[1727510649144,1.46485065,2677.6,2677.4,0.3706]
[1727510649339,1.46485065,2677.6,2677.5,1.7417]
[1727510649551,1.46485065,2677.6,2677.5,2.11508]
[1727510651750,1.95313686,2677.6,2677.5,2.11508]
[1727510652049,2.32973686,2677.6,2677.5,2.11508]
[1727510653450,2.36393686,2677.6,2677.5,2.11508]
[1727510653645,1.98733686,2677.6,2677.5,2.11508]
[1727510653844,0.0342,2677.6,2677.5,2.11508]
[1727510655153,1.98733686,2677.6,2677.5,2.11508]
[1727510655655,0.0342,2677.6,2677.5,2.11508]
[1727510657156,1.98733686,2677.6,2677.5,2.11508]
[1727510659061,0.0342,2677.6,2677.5,2.11508]
[1727510662258,1.98733686,2677.6,2677.5,2.11508]
[1727510663761,0.0342,2677.6,2677.5,2.11508]
[1727510664655,0.0342,2677.6,2677.4,1.3494989]
[1727510664856,2.70001686,2677.5,2677.4,0.3706]
[1727510665160,0.37341,2677.4,2677.3,1.34]
[1727510665360,0.37341,2677.3,2677.1,0.9788989]
[1727510665563,2.81408931,2677.3,2677.1,1.71344]
[1727510665759,3.2078,2677.4,2677.1,0.37344]
[1727510665760,1.95382434,2677.2,2677.1,0.37344]
[1727510666061,1.95382434,2677.3,2677.2,0.37343]
[1727510666257,0.37341,2677.3,2677.2,1.34]
[1727510666455,2.81407931,2677.3,2677.2,1.34]
[1727510669061,0.37341,2677.3,2677.2,1.34]
[1727510669255,2.81407931,2677.3,2677.2,1.34]
[1727510669863,0.37341,2677.3,2677.2,1.34]
[1727510671067,2.81407931,2677.3,2677.2,1.34]
[1727510672764,2.81407931,2677.3,2677.0,0.37345]
[1727510672765,3.37422931,2677.3,2676.9,0.7481]
[1727510672954,5.53393131,2677.1,2677.0,1.34]
[1727510673160,2.32605756,2677.1,2677.0,1.34]
[1727510673368,3.95395,2677.1,2677.0,1.34]
[1727510673555,2.69843303,2677.1,2677.0,1.34]
[1727510674964,2.32498303,2677.1,2677.0,1.71345]
[1727510675871,2.32498303,2677.1,2677.0,1.34]
[1727510675872,2.69842303,2677.1,2677.0,1.34]
[1727510676765,5.90622303,2677.1,2677.0,1.34]
[1727510676971,2.32498303,2677.1,2677.0,1.71345]
[1727510677271,0.3727,2677.1,2677.0,1.71345]
[1727510677469,2.44066931,2677.3,2677.0,1.34]
[1727510677470,1.95228303,2677.3,2677.0,1.34]
[1727510677678,0.97578339,2677.2,2677.1,0.37344]
[1727510678368,2.32572303,2677.2,2677.1,1.34]
[1727510679276,0.37344,2677.2,2677.1,1.34]
[1727510682875,2.32356331,2677.2,2677.1,1.34]
[1727510683263,0.37344,2677.2,2677.1,1.34]
[1727510684267,2.32321781,2677.2,2677.1,1.34]
[1727510684574,0.37344,2677.2,2677.1,1.34]
[1727510684778,2.32315715,2677.2,2677.1,1.34]
[1727510684967,2.32314016,2677.2,2677.1,1.34]
[1727510686463,6.05834016,2677.2,2677.1,1.34]
[1727510687069,2.32314016,2677.2,2677.1,1.34]
[1727510688974,1.46207458,2677.2,2676.9,0.7481]
[1727510689178,0.97474923,2677.0,2676.9,1.12156]
[1727510689380,1.46207458,2677.0,2676.9,2.46156]
[1727510691072,1.83552458,2677.0,2676.9,2.46156]
[1727510691271,1.46207458,2677.0,2676.9,2.46156]
[1727510691682,1.83552458,2677.0,2676.9,2.46156]
[1727510691873,1.46207458,2677.0,2676.9,2.46156]
[1727510692678,0.37344,2677.1,2676.9,2.46156]
[1727510692679,1.83551458,2677.1,2676.9,2.46156]
[1727510692879,1.83551458,2677.1,2677.0,0.37345]
[1727510693080,1.83551458,2677.1,2676.9,2.46156]
[1727510693384,1.46207458,2677.0,2676.9,2.46156]
[1727510693680,1.83551458,2677.1,2676.9,2.46156]
[1727510693881,0.97450475,2677.0,2676.9,2.46156]
[1727510694071,1.46207458,2677.0,2676.9,2.46156]
[1727510695484,1.83552458,2677.0,2676.9,2.46156]
[1727510695781,0.37345,2677.0,2676.9,2.46156]
[1727510695978,1.83552458,2677.1,2676.9,2.46156]
[1727510696373,1.83552458,2677.0,2676.9,2.0881]
[1727510697379,1.46207458,2677.0,2676.9,2.46157]
[1727510697584,1.83552458,2677.0,2676.9,2.46157]
[1727510697975,1.46207458,2677.0,2676.9,2.46157]
[1727510698180,1.83552458,2677.0,2676.9,2.0881]
[1727510698378,1.46207458,2677.0,2676.9,2.46157]
[1727510698879,1.83552458,2677.0,2676.9,2.0881]
[1727510699079,1.83552458,2677.0,2676.9,2.46157]
[1727510699686,1.83552458,2677.0,2676.9,2.0881]
[1727510700584,1.46207458,2677.1,2677.0,0.37345]
[1727510700887,1.46207458,2677.1,2677.0,1.71345]
[1727510701583,1.46207458,2677.1,2677.0,1.34]
[1727510701794,0.37344,2677.1,2677.0,1.34]
[1727510702688,2.32314016,2677.1,2677.0,1.34]
[1727510702889,2.72684016,2677.1,2677.0,1.34]
[1727510703783,2.32314016,2677.1,2677.0,1.34]
[1727510708393,3.21460931,2677.1,2677.0,1.34]
[1727510710394,0.77394,2677.1,2677.0,1.34]
[1727510711398,0.37345,2677.0,2676.9,2.0881]
[1727510711587,6.02308388,2677.0,2676.9,1.7147]
[1727510711792,5.64963388,2677.0,2676.9,1.7147]
[1727510711996,6.02308388,2677.0,2676.9,1.7147]
[1727510712494,5.64963388,2677.0,2676.9,1.7147]
[1727510712696,6.02308388,2677.0,2676.9,1.7147]
[1727510713595,2.81528388,2677.0,2676.9,1.7147]
[1727510714592,0.37345,2677.0,2676.9,1.34]
[1727510715296,1.67679,2677.0,2676.9,1.34]
[1727510715890,2.05519,2677.0,2676.9,1.34]
[1727510716089,1.12155,2677.0,2676.9,1.34]
[1727510718290,1.12155,2677.0,2676.8,1.34]
[1727510718291,0.7481,2677.0,2676.8,1.34]
[1727510718605,0.37347,2676.9,2676.8,1.34]
[1727510719296,2.44197956,2676.9,2676.8,1.71348]
[1727510721195,2.44197956,2676.9,2676.8,1.34]
[1727510722400,2.44197956,2676.9,2676.8,1.71348]
[1727510722699,2.44197956,2676.9,2676.8,1.34]
[1727510723694,2.81544956,2676.9,2676.8,1.34]
[1727510723887,2.44197956,2676.9,2676.8,1.71348]
[1727510725500,2.44197956,2676.9,2676.8,1.34]
[1727510725803,2.44197956,2676.9,2676.8,1.71348]
[1727510727095,0.37347,2676.9,2676.8,1.34]
[1727510727297,4.10947,2676.9,2676.8,1.34]
[1727510727506,0.37348,2676.8,2676.7,2.1028]
[1727510727803,3.58128,2676.8,2676.7,2.1028]
[1727510728100,6.02285976,2676.8,2676.7,2.1028]
[1727510728296,5.64937976,2676.8,2676.7,2.4763]
[1727510728490,5.64937976,2676.8,2676.7,2.1028]
[1727510730306,6.02285976,2676.8,2676.7,2.1028]
[1727510730509,3.58128,2676.8,2676.7,2.1028]
[1727510731706,3.58128,2676.8,2676.7,1.34]
[1727510731896,3.2078,2676.8,2676.7,1.7135]
[1727510732396,5.64863168,2676.8,2676.7,1.7135]
[1727510732898,5.64863168,2676.8,2676.7,1.34]
[1727510733302,5.64863168,2676.8,2676.7,1.7351]
[1727510733501,6.02211168,2676.8,2676.7,1.7351]
[1727510736704,5.64863168,2676.8,2676.7,1.7351]
[1727510737000,6.02211168,2676.8,2676.7,1.7351]
[1727510737795,6.02182195,2676.8,2676.7,1.7351]
[1727510737991,5.64834195,2676.8,2676.7,1.7351]
[1727510738193,6.02182195,2676.8,2676.7,1.7351]
[1727510738401,5.64834195,2676.8,2676.7,2.1086]
[1727510738595,6.02182195,2676.8,2676.7,1.7351]
[1727510738801,5.64834195,2676.8,2676.7,2.1086]
[1727510739100,5.64834195,2676.8,2676.7,1.7351]
[1727510739698,6.02182195,2676.8,2676.7,1.7351]
[1727510741099,5.64834195,2676.8,2676.7,1.7351]
[1727510741607,6.02182195,2676.8,2676.7,1.7351]
[1727510741805,5.64834195,2676.8,2676.7,1.7351]
[1727510744200,6.02182195,2676.8,2676.7,1.7351]
[1727510746508,6.02182195,2676.8,2676.7,1.34]
[1727510746704,5.64834195,2676.8,2676.7,1.34]
[1727510747111,6.02182195,2676.8,2676.7,1.34]
[1727510747299,5.64834195,2676.8,2676.7,1.34]
[1727510747500,6.02182195,2676.8,2676.7,1.34]
[1727510748206,3.2078,2676.8,2676.5,2.1071]
[1727510748407,3.56416134,2676.7,2676.5,2.48062]
[1727510748603,2.44025134,2676.6,2676.5,1.14062]
[1727510748811,2.44025134,2676.6,2676.5,2.08442]
[1727510749011,3.59795134,2676.7,2676.5,2.08442]
[1727510749411,3.97145134,2676.7,2676.5,2.08442]
[1727510749612,2.44025134,2676.6,2676.5,2.08442]
[1727510751506,2.44025134,2676.6,2676.5,1.7109]
[1727510751711,5.64805134,2676.6,2676.5,1.7109]
[1727510751917,5.64805134,2676.6,2676.5,2.08442]
[1727510752211,5.64805134,2676.6,2676.5,1.7109]
[1727510752514,6.02156134,2676.6,2676.5,0.3709]
[1727510752706,6.02119483,2676.6,2676.5,0.3709]
[1727510753106,3.58131,2676.6,2676.5,0.3709]
[1727510753311,9.75702669,2676.6,2676.4,1.723]
[1727510753615,9.75702669,2676.6,2676.4,2.0959]
[1727510753806,2.43971669,2676.5,2676.4,2.0959]
[1727510754415,6.02102669,2676.6,2676.4,2.0959]
[1727510754918,9.75702669,2676.6,2676.4,2.0959]
[1727510755306,9.75702669,2676.6,2676.0,2.3188989]
[1727510755307,1.34,2676.5,2676.0,2.3188989]
[1727510755507,1.95128155,2676.2,2676.1,0.3996]
[1727510755707,5.64690194,2676.3,2676.1,0.3996]
[1727510755907,6.02045194,2676.3,2676.2,1.34]
[1727510756207,0.37357,2676.2,2675.9,1.34]
[1727510756407,0.37357,2676.2,2675.8,0.37362]
[1727510756408,0.37371,2675.2,2675.0,4.0]
[1727510756611,7.3191,2675.1,2675.0,4.0]
[1727510756812,7.3191,2675.1,2675.0,5.34]
[1727510756813,6.01768704,2675.1,2675.0,5.34]
[1727510757014,12.39168241,2675.1,2675.0,4.0]
[1727510757212,16.97957247,2675.1,2675.0,4.0]
[1727510757419,6.01796241,2675.1,2675.0,4.0]
[1727510757631,16.13008241,2675.1,2675.0,4.0]
[1727510758013,12.39168241,2675.1,2675.0,4.0]
[1727510758213,16.97710541,2675.1,2675.0,4.0]
[1727510758418,15.03282,2675.1,2675.0,4.0]
[1727510758618,17.47008241,2675.1,2675.0,4.0]
[1727510759218,16.97501146,2675.1,2675.0,4.0]
[1727510759919,5.41106763,2675.1,2675.0,4.0]
[1727510760121,11.41106763,2675.1,2675.0,4.0]
[1727510760315,9.95442,2675.1,2675.0,4.0]